fUSD/lending_fUSD_20260510
["ID","MTS","AMOUNT","RATE_DAILY","PERIOD"]
[421961055,1778374245000,-152.0,0.00036265,7]
[421961056,1778374245000,-500.0,0.00036309,120]
[421961051,1778374245000,-155.6,0.00036153,30]
[421961054,1778374245000,-152.0,0.000362,7]
[421961053,1778374245000,-152.0,0.000362,7]
[421961057,1778374245000,-500.0,0.00036309,120]
[421961058,1778374245000,-500.0,0.00036309,120]
[421961064,1778374245000,-775.292,0.00036309,120]
[421961063,1778374245000,-500.0,0.00036309,120]
[421961074,1778374245000,-378.0,0.00036896,30]
[421961066,1778374245000,-152.0,0.00036533,7]
[421961065,1778374245000,-503.0,0.00036445,14]
[421961067,1778374245000,-152.0,0.00036533,7]
[421961069,1778374245000,-152.0,0.00036606,7]
[421961072,1778374245000,-261.0,0.00036878,2]
[421961068,1778374245000,-152.0,0.00036597,2]
[421961070,1778374245000,-152.0,0.00036606,7]
[421961073,1778374245000,-294.0,0.00036878,2]
[421961044,1778374245000,-378.0,0.00035896,30]
[421961040,1778374245000,-267.99454267,0.00035616,2]
[421961011,1778374245000,-150.0,0.00034267,2]
[421961039,1778374245000,-530.65394592,0.00035616,7]
[421961043,1778374245000,-160.0,0.000358,120]
[421961019,1778374245000,-503.0,0.00034591,12]
[421961021,1778374245000,-378.0,0.00034896,30]
[421961013,1778374245000,-248.0,0.00034482,2]
[421961020,1778374245000,-1500.0,0.00034795,2]
[421961018,1778374245000,-214.0,0.00034521,120]
[421961022,1778374245000,-671.0,0.00034896,30]
[421961071,1778374245000,-1066.73007954,0.00036617,2]
[421961015,1778374245000,-9642.0,0.00034495,30]
[421961017,1778374245000,-150.0,0.00034521,120]
[421961023,1778374245000,-152.0,0.00034921,7]
[421961025,1778374245000,-1500.0,0.000352,7]
[421961027,1778374245000,-182.63654604,0.00035457,2]
[421961016,1778374245000,-262.22,0.00034521,120]
[421961024,1778374245000,-276.52752926,0.00035194,2]
[421961035,1778374245000,-500.0,0.00035616,7]
[421961036,1778374245000,-500.0,0.00035616,7]
[421961037,1778374245000,-500.0,0.00035616,7]
[421961047,1778374245000,-150.0,0.00035981,2]
[421961033,1778374245000,-167.0,0.000356,30]
[421961031,1778374245000,-178.41920667,0.00035524,3]
[421961032,1778374245000,-179.09,0.000356,30]
[421961041,1778374245000,-500.0,0.00035671,2]
[421961029,1778374245000,-500.0,0.00035524,3]
[421961028,1778374245000,-503.0,0.00035518,13]
[421961026,1778374245000,-1495.795,0.00035224,41]
[421961034,1778374245000,-150.0,0.00035616,60]
[421961030,1778374245000,-500.0,0.00035524,3]
[421961114,1778374246000,-151.0,0.00037345,2]
[421961118,1778374246000,-151.0,0.00037455,2]
[421961125,1778374246000,-310.57459591,0.00037631,2]
[421961117,1778374246000,-3077.40983933,0.00037446,2]
[421961115,1778374246000,-503.0,0.00037371,15]
[421961109,1778374246000,-152.0,0.00037235,2]
[421961110,1778374246000,-153.53245003,0.00037235,2]
[421961107,1778374246000,-152.0,0.00037235,2]
[421961108,1778374246000,-152.0,0.00037235,2]
[421961104,1778374246000,-151.0,0.00037235,2]
[421961116,1778374246000,-151.0,0.000374,2]
[421961111,1778374246000,-743.50770149,0.00037235,2]
[421961122,1778374246000,-1145.98254531,0.00037631,2]
[421961131,1778374246000,-300.0,0.00037631,2]
[421961120,1778374246000,-151.0,0.00037565,2]
[421961124,1778374246000,-863.54795654,0.00037631,2]
[421961121,1778374246000,-165.59967503,0.0003762,2]
[421961123,1778374246000,-309.26886467,0.00037631,2]
[421961126,1778374246000,-463.36822182,0.00037631,2]
[421961128,1778374246000,-451.4433371,0.00037631,2]
[421961127,1778374246000,-576.5741924,0.00037631,2]
[421961129,1778374246000,-483.58541473,0.00037631,2]
[421961136,1778374246000,-492.17769921,0.00037631,2]
[421961133,1778374246000,-1093.57565763,0.00037631,2]
[421961130,1778374246000,-309.51003376,0.00037631,2]
[421961134,1778374246000,-300.0,0.00037631,2]
[421961106,1778374246000,-152.0,0.00037235,2]
[421961119,1778374246000,-151.0,0.0003751,2]
[421961105,1778374246000,-152.0,0.00037235,2]
[421961089,1778374246000,-300.0,0.00037106,2]
[421961102,1778374246000,-152.0,0.00037235,2]
[421961132,1778374246000,-300.76520126,0.00037631,2]
[421961075,1778374246000,-671.0,0.00036896,30]
[421961078,1778374246000,-506.66,0.00037065,2]
[421961077,1778374246000,-925.0,0.00037065,2]
[421961086,1778374246000,-300.0,0.00037106,2]
[421961087,1778374246000,-300.0,0.00037106,2]
[421961088,1778374246000,-300.0,0.00037106,2]
[421961081,1778374246000,-6047.0,0.00037065,2]
[421961080,1778374246000,-150.0,0.00037065,2]
[421961079,1778374246000,-417.0,0.00037065,2]
[421961084,1778374246000,-300.0,0.00037106,2]
[421961085,1778374246000,-300.0,0.00037106,2]
[421961083,1778374246000,-300.0,0.00037106,2]
[421961082,1778374246000,-243.653,0.00037065,2]
[421961090,1778374246000,-300.0,0.00037106,2]
[421961098,1778374246000,-578.20924308,0.00037235,2]
[421961095,1778374246000,-167.0,0.000372,30]
[421961096,1778374246000,-191.26444495,0.000372,120]
[421961100,1778374246000,-152.0,0.00037235,2]
[421961092,1778374246000,-300.0,0.00037106,2]
[421961093,1778374246000,-162.0,0.00037106,2]
[421961097,1778374246000,-174.61919141,0.00037235,2]
[421961094,1778374246000,-179.09,0.000372,30]
[421961099,1778374246000,-152.0,0.00037235,2]
[421961103,1778374246000,-152.0,0.00037235,2]
[421961101,1778374246000,-152.0,0.00037235,2]
[421961112,1778374246000,-1428.38747117,0.00037235,2]
[421961113,1778374246000,-151.0,0.0003729,2]
[421961135,1778374246000,-301.03431884,0.00037631,2]
[421961148,1778374246000,-853.29787158,0.00037631,2]
[421961179,1778374246000,-1020.26,0.000377,7]
[421961168,1778374246000,-1065.80891604,0.00037631,2]
[421961166,1778374246000,-300.0,0.00037631,2]
[421961169,1778374246000,-892.47111794,0.00037631,2]
[421961167,1778374246000,-527.1999469,0.00037631,2]
[421961186,1778374246000,-876.0,0.00037931,30]
[421961178,1778374246000,-160.0,0.0003764,120]
[421961187,1778374246000,-817.0,0.00037931,30]
[421961188,1778374246000,-390.0,0.00037931,30]
[421961176,1778374246000,-1794.44722741,0.00037631,2]
[421961177,1778374246000,-343.62395792,0.00037631,2]
[421961181,1778374246000,-1886.49260863,0.00037766,111]
[421961183,1778374246000,-181.08010149,0.00037783,2]
[421961180,1778374246000,-1444.0,0.00037753,120]
[421961170,1778374246000,-399.46100559,0.00037631,2]
[421961182,1778374246000,-150.0,0.0003778,2]
[421961185,1778374246000,-1481.23780761,0.00037783,2]
[421961201,1778374246000,-9669.6598,0.00038351,2]
[421961200,1778374246000,-187.78006525,0.00038331,2]
[421961189,1778374246000,-155.6,0.00038125,30]
[421961193,1778374246000,-150.0,0.0003813,2]
[421961191,1778374246000,-150.0,0.0003813,2]
[421961194,1778374246000,-150.0,0.0003813,2]
[421961196,1778374246000,-150.0,0.0003813,2]
[421961199,1778374246000,-503.0,0.00038298,16]
[421961197,1778374246000,-153.0,0.0003813,2]
[421961195,1778374246000,-150.0,0.0003813,2]
[421961137,1778374246000,-603.8329142,0.00037631,2]
[421961198,1778374246000,-512.43,0.000382,7]
[421961184,1778374246000,-200.42074195,0.00037783,2]
[421961171,1778374246000,-725.31429466,0.00037631,2]
[421961175,1778374246000,-853.29787158,0.00037631,2]
[421961164,1778374246000,-492.17769921,0.00037631,2]
[421961140,1778374246000,-1065.80891604,0.00037631,2]
[421961145,1778374246000,-300.0,0.00037631,2]
[421961138,1778374246000,-300.0,0.00037631,2]
[421961139,1778374246000,-527.1999469,0.00037631,2]
[421961141,1778374246000,-892.47111794,0.00037631,2]
[421961143,1778374246000,-725.31429466,0.00037631,2]
[421961146,1778374246000,-300.25804147,0.00037631,2]
[421961147,1778374246000,-369.74861073,0.00037631,2]
[421961149,1778374246000,-1794.44722741,0.00037631,2]
[421961172,1778374246000,-301.48155124,0.00037631,2]
[421961144,1778374246000,-301.48155124,0.00037631,2]
[421961150,1778374246000,-343.62395792,0.00037631,2]
[421961151,1778374246000,-526.35006308,0.00037631,2]
[421961161,1778374246000,-309.51003376,0.00037631,2]
[421961152,1778374246000,-1145.98254531,0.00037631,2]
[421961142,1778374246000,-532.61467443,0.00037631,2]
[421961157,1778374246000,-576.5741924,0.00037631,2]
[421961154,1778374246000,-863.54795654,0.00037631,2]
[421961155,1778374246000,-310.57459591,0.00037631,2]
[421961153,1778374246000,-309.26886467,0.00037631,2]
[421961156,1778374246000,-463.36822182,0.00037631,2]
[421961158,1778374246000,-451.4433371,0.00037631,2]
[421961160,1778374246000,-483.58541473,0.00037631,2]
[421961163,1778374246000,-1093.57565763,0.00037631,2]
[421961162,1778374246000,-300.0,0.00037631,2]
[421961173,1778374246000,-300.0,0.00037631,2]
[421961174,1778374246000,-300.25804147,0.00037631,2]
[421961165,1778374246000,-603.8329142,0.00037631,2]
[421961159,1778374246000,-300.0,0.00037631,2]
[421961238,1778374247000,-173.54,0.00039293,13]
[421961239,1778374247000,-179.09,0.000393,30]
[421961246,1778374247000,-9669.6598,0.00039447,2]
[421961240,1778374247000,-167.0,0.000393,30]
[421961245,1778374247000,-201.93286099,0.00039427,2]
[421961242,1778374247000,-1068.2485,0.0003931,2]
[421961233,1778374247000,-191.53,0.00039293,13]
[421961244,1778374247000,-150.96,0.00039392,120]
[421961241,1778374247000,-9669.6598,0.0003931,2]
[421961236,1778374247000,-173.55,0.00039293,13]
[421961237,1778374247000,-173.55,0.00039293,13]
[421961230,1778374247000,-400.0,0.00039289,2]
[421961243,1778374247000,-7303.91192666,0.00039358,5]
[421961247,1778374247000,-150.96,0.00039492,120]
[421961257,1778374247000,-1271.0,0.00039734,5]
[421961260,1778374247000,-191.52,0.00039841,13]
[421961259,1778374247000,-150.96,0.00039792,120]
[421961248,1778374247000,-9669.6598,0.00039584,2]
[421961261,1778374247000,-191.53,0.00039841,13]
[421961250,1778374247000,-200.0,0.00039667,6]
[421961251,1778374247000,-150.0,0.00039669,2]
[421961252,1778374247000,-200.0,0.00039676,6]
[421961254,1778374247000,-150.96,0.00039692,120]
[421961253,1778374247000,-200.0,0.00039677,6]
[421961256,1778374247000,-1599.0,0.00039734,5]
[421961255,1778374247000,-9669.6598,0.00039721,2]
[421961258,1778374247000,-152.079551,0.00039765,2]
[421961234,1778374247000,-210.34,0.00039293,13]
[421961249,1778374247000,-150.96,0.00039592,120]
[421961227,1778374247000,-503.0,0.00039225,17]
[421961202,1778374247000,-1068.2485,0.00038351,2]
[421961231,1778374247000,-150.96,0.00039292,120]
[421961203,1778374247000,-150.0,0.00038356,60]
[421961205,1778374247000,-250.0,0.00038359,5]
[421961206,1778374247000,-350.0,0.00038362,5]
[421961208,1778374247000,-550.0,0.00038367,5]
[421961212,1778374247000,-9669.6598,0.00038625,2]
[421961207,1778374247000,-450.0,0.00038364,5]
[421961210,1778374247000,-698.95886867,0.00038373,5]
[421961209,1778374247000,-650.0,0.0003837,5]
[421961213,1778374247000,-1200.0,0.0003863,30]
[421961204,1778374247000,-150.0,0.00038356,5]
[421961211,1778374247000,-9669.6598,0.00038488,2]
[421961214,1778374247000,-9669.6598,0.00038762,2]
[421961215,1778374247000,-194.72792766,0.00038879,2]
[421961217,1778374247000,-1983.9044813,0.000389,7]
[421961216,1778374247000,-9669.6598,0.00038899,2]
[421961219,1778374247000,-456.26,0.00038954,2]
[421961218,1778374247000,-453.45,0.00038954,2]
[421961220,1778374247000,-537.47379803,0.00039,2]
[421961223,1778374247000,-1020.26,0.000391,7]
[421961222,1778374247000,-150.96,0.00039092,120]
[421961221,1778374247000,-9669.6598,0.00039036,2]
[421961225,1778374247000,-150.96,0.00039192,120]
[421961235,1778374247000,-210.34,0.00039293,13]
[421961224,1778374247000,-9669.6598,0.00039173,2]
[421961232,1778374247000,-191.52,0.00039293,13]
[421961226,1778374247000,-1000.0,0.000392,7]
[421961228,1778374247000,-400.0,0.00039289,2]
[421961229,1778374247000,-400.0,0.00039289,2]
[421961262,1778374247000,-210.34,0.00039841,13]
[421961322,1778374247000,-2808.06124531,0.00040323,2]
[421961274,1778374247000,-456.26,0.00039928,2]
[421961300,1778374247000,-628.14,0.000402,120]
[421961294,1778374247000,-503.0,0.00040151,18]
[421961296,1778374247000,-1020.26,0.000402,7]
[421961302,1778374247000,-500.0,0.00040245,21]
[421961297,1778374247000,-627.71,0.000402,30]
[421961298,1778374247000,-627.71,0.000402,120]
[421961303,1778374247000,-1400.0,0.00040245,21]
[421961304,1778374247000,-9669.6607,0.00040269,2]
[421961314,1778374247000,-420.59,0.00040279,2]
[421961309,1778374247000,-300.0,0.00040279,2]
[421961308,1778374247000,-300.0,0.00040279,2]
[421961307,1778374247000,-300.0,0.00040279,2]
[421961310,1778374247000,-300.0,0.00040279,2]
[421961290,1778374247000,-417.0,0.00040065,2]
[421961306,1778374247000,-300.0,0.00040279,2]
[421961313,1778374247000,-300.0,0.00040279,2]
[421961305,1778374247000,-1068.2486,0.00040269,2]
[421961311,1778374247000,-300.0,0.00040279,2]
[421961316,1778374247000,-296.75,0.0004029,60]
[421961320,1778374247000,-790.59,0.000403,14]
[421961317,1778374247000,-1121.41,0.0004029,60]
[421961319,1778374247000,-150.96,0.00040292,120]
[421961321,1778374247000,-2808.06124531,0.00040316,2]
[421961318,1778374247000,-3309.69,0.0004029,60]
[421961323,1778374247000,-191.52,0.00040389,13]
[421961325,1778374247000,-210.34,0.00040389,13]
[421961324,1778374247000,-191.53,0.00040389,13]
[421961271,1778374247000,-512.43,0.000399,30]
[421961312,1778374247000,-300.0,0.00040279,2]
[421961301,1778374247000,-500.0,0.00040245,21]
[421961315,1778374247000,-747.82,0.0004029,60]
[421961295,1778374247000,-150.96,0.00040192,120]
[421961299,1778374247000,-628.14,0.000402,120]
[421961272,1778374247000,-1600.0,0.00039909,30]
[421961273,1778374247000,-1600.0,0.00039909,60]
[421961263,1778374247000,-210.34,0.00039841,13]
[421961265,1778374247000,-173.55,0.00039841,13]
[421961270,1778374247000,-5367.87855,0.00039899,30]
[421961268,1778374247000,-185.0732287,0.0003989,2]
[421961267,1778374247000,-9669.6598,0.00039858,2]
[421961266,1778374247000,-173.54,0.00039841,13]
[421961269,1778374247000,-150.96,0.00039892,120]
[421961276,1778374247000,-328.38562332,0.00039975,2]
[421961288,1778374247000,-188.83,0.00040029,14]
[421961282,1778374247000,-470.97,0.0004,120]
[421961280,1778374247000,-536.0,0.0004,30]
[421961264,1778374247000,-173.55,0.00039841,13]
[421961292,1778374247000,-150.96,0.00040092,120]
[421961287,1778374247000,-188.83,0.00040029,14]
[421961293,1778374247000,-9669.6598,0.00040132,2]
[421961291,1778374247000,-6047.0,0.00040065,2]
[421961289,1778374247000,-188.82,0.00040029,14]
[421961283,1778374247000,-23355.88852389,0.0004,40]
[421961285,1778374247000,-200.29369116,0.0004,3]
[421961284,1778374247000,-2009.04957785,0.0004,120]
[421961281,1778374247000,-194.0,0.0004,120]
[421961277,1778374247000,-150.96,0.00039992,120]
[421961278,1778374247000,-9669.6598,0.00039995,2]
[421961275,1778374247000,-578.20924308,0.00039974,2]
[421961286,1778374247000,-686.88277754,0.0004,2]
[421961279,1778374247000,-155.0,0.0004,120]
[421961360,1778374248000,-370.60193955,0.00040793,13]
[421961371,1778374248000,-500.0,0.00040957,3]
[421961370,1778374248000,-500.0,0.00040957,3]
[421961362,1778374248000,-2808.06124531,0.0004082,2]
[421961365,1778374248000,-150.96,0.00040892,120]
[421961363,1778374248000,-2808.06124531,0.00040839,2]
[421961357,1778374248000,-370.60193955,0.00040793,13]
[421961359,1778374248000,-370.60193955,0.00040793,13]
[421961361,1778374248000,-179.09,0.000408,30]
[421961355,1778374248000,-370.60193955,0.00040793,13]
[421961369,1778374248000,-281.0,0.00040952,120]
[421961372,1778374248000,-500.0,0.00040957,3]
[421961358,1778374248000,-370.60193955,0.00040793,13]
[421961364,1778374248000,-3077.40983933,0.00040852,15]
[421961381,1778374248000,-536.0,0.00041,30]
[421961379,1778374248000,-199902.0,0.00041,120]
[421961382,1778374248000,-151.0,0.00041,30]
[421961374,1778374248000,-216.18,0.00040992,120]
[421961377,1778374248000,-400.0,0.00040997,2]
[421961380,1778374248000,-329.15,0.00041,17]
[421961373,1778374248000,-350.0,0.00040991,2]
[421961375,1778374248000,-150.96,0.00040992,120]
[421961378,1778374248000,-168.56,0.00041,2]
[421961384,1778374248000,-151.0,0.00041,30]
[421961383,1778374248000,-151.0,0.00041,30]
[421961385,1778374248000,-151.0,0.00041,30]
[421961387,1778374248000,-151.0,0.00041,30]
[421961386,1778374248000,-151.0,0.00041,30]
[421961393,1778374248000,-1000.0,0.00041,7]
[421961376,1778374248000,-400.0,0.00040997,2]
[421961367,1778374248000,-456.26,0.00040902,2]
[421961327,1778374248000,-173.55,0.00040389,13]
[421961356,1778374248000,-370.60193955,0.00040793,13]
[421961328,1778374248000,-173.55,0.00040389,13]
[421961329,1778374248000,-173.54,0.00040389,13]
[421961326,1778374248000,-210.34,0.00040389,13]
[421961341,1778374248000,-150.96,0.00040692,120]
[421961336,1778374248000,-150.96,0.00040592,120]
[421961333,1778374248000,-150.96,0.00040492,120]
[421961339,1778374248000,-350.0,0.00040637,2]
[421961332,1778374248000,-17490.2525075,0.00040448,2]
[421961342,1778374248000,-4832.49,0.0004075,120]
[421961331,1778374248000,-2808.06124531,0.00040426,2]
[421961340,1778374248000,-2808.06124531,0.00040646,2]
[421961334,1778374248000,-2808.06124531,0.00040509,2]
[421961335,1778374248000,-150.0,0.00040535,2]
[421961337,1778374248000,-194.0,0.000406,120]
[421961330,1778374248000,-150.96,0.00040392,120]
[421961338,1778374248000,-2232.34305614,0.00040602,2]
[421961343,1778374248000,-1000.0,0.00040765,90]
[421961350,1778374248000,-150.96,0.00040792,120]
[421961348,1778374248000,-150.0,0.00040778,10]
[421961352,1778374248000,-370.60193955,0.00040793,13]
[421961346,1778374248000,-150.0,0.00040778,10]
[421961344,1778374248000,-150.0,0.00040778,10]
[421961354,1778374248000,-370.60193955,0.00040793,13]
[421961345,1778374248000,-150.0,0.00040778,10]
[421961391,1778374248000,-151.0,0.00041,30]
[421961349,1778374248000,-199.0,0.00040778,10]
[421961351,1778374248000,-370.60193963,0.00040793,13]
[421961353,1778374248000,-370.60193955,0.00040793,13]
[421961368,1778374248000,-265947.0,0.0004095,60]
[421961366,1778374248000,-453.46888794,0.00040902,2]
[421961389,1778374248000,-151.0,0.00041,30]
[421961347,1778374248000,-150.0,0.00040778,10]
[421961392,1778374248000,-151.0,0.00041,30]
[421961427,1778374248000,-500.0,0.00041095,2]
[421961428,1778374248000,-500.0,0.00041095,2]
[421961429,1778374248000,-500.0,0.00041095,2]
[421961430,1778374248000,-500.0,0.00041095,2]
[421961431,1778374248000,-500.0,0.00041095,2]
[421961432,1778374248000,-500.0,0.00041095,2]
[421961433,1778374248000,-500.0,0.00041095,2]
[421961434,1778374248000,-500.0,0.00041095,2]
[421961436,1778374248000,-500.0,0.00041095,2]
[421961438,1778374248000,-500.0,0.00041095,2]
[421961435,1778374248000,-500.0,0.00041095,2]
[421961447,1778374248000,-500.0,0.00041095,2]
[421961439,1778374248000,-500.0,0.00041095,2]
[421961437,1778374248000,-500.0,0.00041095,2]
[421961445,1778374248000,-500.0,0.00041095,2]
[421961446,1778374248000,-500.0,0.00041095,2]
[421961440,1778374248000,-500.0,0.00041095,2]
[421961444,1778374248000,-500.0,0.00041095,2]
[421961442,1778374248000,-500.0,0.00041095,2]
[421961443,1778374248000,-500.0,0.00041095,2]
[421961441,1778374248000,-500.0,0.00041095,2]
[421961449,1778374248000,-500.0,0.00041095,2]
[421961448,1778374248000,-500.0,0.00041095,2]
[421961450,1778374248000,-500.0,0.00041095,2]
[421961453,1778374248000,-551.23367372,0.00041095,2]
[421961455,1778374248000,-500.0,0.00041095,2]
[421961452,1778374248000,-500.0,0.00041095,2]
[421961454,1778374248000,-500.0,0.00041095,2]
[421961388,1778374248000,-151.0,0.00041,30]
[421961426,1778374248000,-500.0,0.00041095,2]
[421961421,1778374248000,-500.0,0.00041095,2]
[421961451,1778374248000,-500.0,0.00041095,2]
[421961425,1778374248000,-500.0,0.00041095,2]
[421961422,1778374248000,-500.0,0.00041095,2]
[421961394,1778374248000,-151.0,0.00041,30]
[421961396,1778374248000,-151.0,0.00041,30]
[421961395,1778374248000,-151.0,0.00041,30]
[421961397,1778374248000,-208.261282,0.00041,28]
[421961398,1778374248000,-208.261282,0.00041,28]
[421961399,1778374248000,-208.261282,0.00041,28]
[421961400,1778374248000,-208.261282,0.00041,28]
[421961408,1778374248000,-151.0,0.00041,30]
[421961405,1778374248000,-151.0,0.00041,30]
[421961402,1778374248000,-864.038667,0.00041,30]
[421961406,1778374248000,-151.0,0.00041,30]
[421961409,1778374248000,-152.0,0.00041027,4]
[421961411,1778374248000,-500.0,0.00041067,21]
[421961401,1778374248000,-864.038667,0.00041,30]
[421961390,1778374248000,-151.0,0.00041,30]
[421961410,1778374248000,-1143.1,0.00041041,120]
[421961407,1778374248000,-151.0,0.00041,30]
[421961419,1778374248000,-200.57141061,0.00041095,2]
[421961424,1778374248000,-500.0,0.00041095,2]
[421961420,1778374248000,-500.0,0.00041095,2]
[421961417,1778374248000,-500.0,0.00041095,2]
[421961423,1778374248000,-500.0,0.00041095,2]
[421961418,1778374248000,-500.0,0.00041095,2]
[421961416,1778374248000,-306.64215495,0.00041095,120]
[421961415,1778374248000,-500.0,0.00041095,120]
[421961412,1778374248000,-1400.0,0.00041067,21]
[421961413,1778374248000,-503.0,0.00041078,19]
[421961403,1778374248000,-864.038667,0.00041,30]
[421961414,1778374248000,-150.96,0.00041092,120]
[421961404,1778374248000,-864.038667,0.00041,30]
[421961500,1778374249000,-500.0,0.00041095,2]
[421961499,1778374249000,-500.0,0.00041095,2]
[421961495,1778374249000,-500.0,0.00041095,2]
[421961494,1778374249000,-500.0,0.00041095,2]
[421961493,1778374249000,-500.0,0.00041095,2]
[421961490,1778374249000,-500.0,0.00041095,2]
[421961491,1778374249000,-500.0,0.00041095,2]
[421961488,1778374249000,-500.0,0.00041095,2]
[421961492,1778374249000,-500.0,0.00041095,2]
[421961505,1778374249000,-500.0,0.00041095,2]
[421961489,1778374249000,-500.0,0.00041095,2]
[421961496,1778374249000,-500.0,0.00041095,2]
[421961497,1778374249000,-500.0,0.00041095,2]
[421961504,1778374249000,-500.0,0.00041095,2]
[421961498,1778374249000,-500.0,0.00041095,2]
[421961501,1778374249000,-500.0,0.00041095,2]
[421961509,1778374249000,-500.0,0.00041095,2]
[421961508,1778374249000,-500.0,0.00041095,2]
[421961502,1778374249000,-500.0,0.00041095,2]
[421961503,1778374249000,-173.39733273,0.00041095,2]
[421961507,1778374249000,-500.0,0.00041095,2]
[421961506,1778374249000,-500.0,0.00041095,2]
[421961511,1778374249000,-300.0,0.00041095,2]
[421961512,1778374249000,-300.0,0.00041095,2]
[421961513,1778374249000,-300.0,0.00041095,2]
[421961487,1778374249000,-500.0,0.00041095,2]
[421961514,1778374249000,-300.0,0.00041095,2]
[421961510,1778374249000,-285.41938658,0.00041095,2]
[421961486,1778374249000,-500.0,0.00041095,2]
[421961464,1778374249000,-500.0,0.00041095,2]
[421961482,1778374249000,-500.0,0.00041095,2]
[421961523,1778374249000,-300.0,0.00041095,2]
[421961460,1778374249000,-500.0,0.00041095,2]
[421961459,1778374249000,-500.0,0.00041095,2]
[421961458,1778374249000,-500.0,0.00041095,2]
[421961457,1778374249000,-500.0,0.00041095,2]
[421961461,1778374249000,-500.0,0.00041095,2]
[421961462,1778374249000,-500.0,0.00041095,2]
[421961471,1778374249000,-500.0,0.00041095,2]
[421961469,1778374249000,-500.0,0.00041095,2]
[421961472,1778374249000,-500.0,0.00041095,2]
[421961473,1778374249000,-500.0,0.00041095,2]
[421961470,1778374249000,-500.0,0.00041095,2]
[421961467,1778374249000,-500.0,0.00041095,2]
[421961463,1778374249000,-500.0,0.00041095,2]
[421961468,1778374249000,-500.0,0.00041095,2]
[421961465,1778374249000,-500.0,0.00041095,2]
[421961466,1778374249000,-500.0,0.00041095,2]
[421961475,1778374249000,-500.0,0.00041095,2]
[421961474,1778374249000,-500.0,0.00041095,2]
[421961485,1778374249000,-500.0,0.00041095,2]
[421961476,1778374249000,-500.0,0.00041095,2]
[421961477,1778374249000,-500.0,0.00041095,2]
[421961478,1778374249000,-500.0,0.00041095,2]
[421961483,1778374249000,-500.0,0.00041095,2]
[421961480,1778374249000,-500.0,0.00041095,2]
[421961481,1778374249000,-500.0,0.00041095,2]
[421961479,1778374249000,-500.0,0.00041095,2]
[421961484,1778374249000,-500.0,0.00041095,2]
[421961522,1778374249000,-300.0,0.00041095,2]
[421961456,1778374249000,-500.0,0.00041095,2]
[421961516,1778374249000,-300.0,0.00041095,2]
[421961552,1778374249000,-1474.328509,0.00041096,120]
[421961549,1778374249000,-160.25,0.00041096,120]
[421961554,1778374249000,-1474.328509,0.00041096,120]
[421961556,1778374249000,-1474.328509,0.00041096,120]
[421961551,1778374249000,-151.0,0.00041096,120]
[421961555,1778374249000,-1474.328509,0.00041096,120]
[421961557,1778374249000,-151.0,0.00041096,120]
[421961553,1778374249000,-151.0,0.00041096,120]
[421961558,1778374249000,-204.977196,0.00041096,120]
[421961559,1778374249000,-892.95,0.00041096,120]
[421961561,1778374249000,-892.95,0.00041096,120]